[Event "TUR-ch Veterans 2019"]
[Site "Belek"]
[Date "2019.01.24"]
[Round "5.18"]
[White "Bagci, Hikmet"]
[Black "Bapoglu, Ibrahim"]
[Result "0-1"]
[ECO "B07"]
[WhiteElo "1548"]
[BlackElo "1549"]
[Annotator "NA"]
[PlyCount "88"]
[EventDate "2019.01.20"]
[EventType "swiss"]
[EventCountry "TUR"]
[SourceTitle "playchess.com"]
[Source "ChessBase"]
[SourceQuality "1"]
[TimeControl "5400+30"]

1. e4 {[%emt 0:00:30]} c6 {[%emt 0:00:30]} 2. d4 {[%emt 0:00:00]} g6 {[%emt 0:01:30]} 3. Be3 {[%emt 0:01:00]} Bg7 {[%emt 0:00:30]} 4. Qd2 {[%emt 0:00:30]} d6 {[%emt 0:00:30]} 5. Nc3 {[%emt 0:00:30]} Nf6 {[%emt 0:00:30]} 6. f3 {[%emt 0:00:30]} Nbd7 {[%emt 0:00:30]} 7. g4 {[%emt 0:00:30]} Nb6 {[%emt 0:00:30]} 8. h4 {[%emt 0:00:30]} h5 {[%emt 0:00:30]} 9. g5 {[%emt 0:02:30]} Nh7 {[%emt 0:00:30]} 10. O-O-O {[%emt 0:00:30]} O-O {[%emt 0:00:30]} 11. Nh3 {[%emt 0:00:30]} Be6 {[%emt 0:01:30]} 12. Nf4 {[%emt 0:00:30]} Bc4 {[%emt 0:00:30]} 13. Bd3 {[%emt 0:06:30]} Qc7 {[%emt 0:00:30]} 14. Kb1 {[%emt 0:02:30]} Rfd8 {[%emt 0:01:30]} 15. Qe2 {[%emt 0:01:30]} Bxd3 {[%emt 0:01:30]} 16. Qxd3 {[%emt 0:02:30]} Nf8 {[%emt 0:00:30]} 17. d5 {[%emt 0:01:30]} Nfd7 {[%emt 0:00:30]} 18. Bd4 {[%emt 0:06:30]} Ne5 {[%emt 0:01:30]} 19. Qe2 {[%emt 0:00:30]} Nbc4 {[%emt 0:00:00]} 20. Nd3 {[%emt 0:05:30]} c5 {[%emt 0:01:00]} 21. Bxe5 {[%emt 0:00:30]} Nxe5 {[%emt 0:00:30]} 22. Nc1 {[%emt 0:04:30]} a6 {[%emt 0:04:30]} 23. f4 {[%emt 0:00:30]} Nd7 {[%emt 0:00:30]} 24. Rh3 {[%emt 0:00:30]} b5 {[%emt 0:00:30]} 25. Rf1 {[%emt 0:03:30]} c4 {[%emt 0:02:30]} 26. f5 {[%emt 0:00:30]} Rf8 {[%emt 0:01:30]} 27. Qe3 {[%emt 0:04:30]} Rac8 {[%emt 0:01:30]} 28. N3e2 {[%emt 0:01:30]} Qc5 {[%emt 0:02:30]} 29. Qd2 {[%emt 0:05:30]} Be5 {[%emt 0:01:30]} 30. Rhf3 {[%emt 0:03:30]} b4 {[%emt 0:03:30]} 31. c3 {[%emt 0:02:30]} bxc3 {[%emt 0:02:30]} 32. Nxc3 {[%emt 0:00:30]} Rb8 {[%emt 0:01:30]} 33. fxg6 {[%emt 0:05:30]} fxg6 {[%emt 0:00:30]} 34. Rxf8+ {[%emt 0:00:30]} Rxf8 {[%emt 0:00:30]} 35. Rxf8+ {[%emt 0:01:30]} Kxf8 {[%emt 0:00:30]} 36. Qe1 {[%emt 0:00:00]} Ke8 {[%emt 0:03:30]} 37. a3 {[%emt 0:02:00]} Qd4 {[%emt 0:00:30]} 38. Ka2 {[%emt 0:01:30]} Nc5 {[%emt 0:00:30]} 39. Qh1 {[%emt 0:01:30]} Qf2 {[%emt 0:01:30]} 40. Qh3 {[%emt 0:01:30]} Kd8 {[%emt 0:01:30]} 41. Kb1 {[%emt 0:07:30]} Nxe4 {[%emt 0:01:30]} 42. N3e2 {[%emt 0:05:30]} Nc5 {[%emt 0:02:30]} 43. Qh1 {[%emt 0:01:30]} Qf5+ {[%emt 0:00:30]} 44. Ka2 {[%emt 0:00:30]} Qc2 {[%emt 0:00:30]} 0-1

[Event "TUR-ch Veterans 2019"]
[Site "Belek"]
[Date "2019.01.24"]
[Round "5.19"]
[White "Odabasi, Nail"]
[Black "Yilmaz, Huseyin"]
[Result "0-1"]
[ECO "D00"]
[WhiteElo "1525"]
[BlackElo "1321"]
[Annotator "NA"]
[PlyCount "102"]
[EventDate "2019.01.20"]
[EventType "swiss"]
[EventCountry "TUR"]
[SourceTitle "playchess.com"]
[Source "ChessBase"]
[SourceQuality "1"]
[TimeControl "5400+30"]

1. d4 {[%emt 0:00:30]} Nf6 {[%emt 0:00:30]} 2. Bf4 {[%emt 0:00:00]} d5 {[%emt 0:00:30]} 3. e3 {[%emt 0:00:00]} c5 {[%emt 0:00:30]} 4. c3 {[%emt 0:00:30]} Nc6 {[%emt 0:00:30]} 5. Nd2 {[%emt 0:00:30]} c4 {[%emt 0:01:30]} 6. Be2 {[%emt 0:01:30]} g6 {[%emt 0:00:30]} 7. h3 {[%emt 0:01:30]} Bg7 {[%emt 0:00:00]} 8. Ngf3 {[%emt 0:00:30]} O-O {[%emt 0:00:00]} 9. g4 {[%emt 0:01:30]} Ne4 {[%emt 0:00:00]} 10. Nxe4 {[%emt 0:00:30]} dxe4 {[%emt 0:03:00]} 11. Nd2 {[%emt 0:00:30]} e5 {[%emt 0:03:30]} 12. Bg3 {[%emt 0:01:30]} exd4 {[%emt 0:00:30]} 13. exd4 {[%emt 0:01:30]} e3 {[%emt 0:01:30]} 14. fxe3 {[%emt 0:00:30]} b5 {[%emt 0:00:30]} 15. O-O {[%emt 0:01:30]} Qg5 {[%emt 0:02:30]} 16. Rf4 {[%emt 0:05:30]} f5 {[%emt 0:02:30]} 17. h4 {[%emt 0:00:30]} Qe7 {[%emt 0:00:30]} 18. e4 {[%emt 0:05:30]} Nd8 {[%emt 0:03:30]} 19. e5 {[%emt 0:02:30]} Ne6 {[%emt 0:00:00]} 20. Rf2 {[%emt 0:01:30]} f4 {[%emt 0:00:00]} 21. Bh2 {[%emt 0:00:30]} Qxh4 {[%emt 0:00:30]} 22. Rg2 {[%emt 0:02:30]} Bb7 {[%emt 0:00:30]} 23. Bf3 {[%emt 0:00:30]} Qe7 {[%emt 0:02:30]} 24. Bxb7 {[%emt 0:01:30]} Qxb7 {[%emt 0:00:00]} 25. Nf3 {[%emt 0:02:30]} Rad8 {[%emt 0:05:00]} 26. Rd2 {[%emt 0:01:30]} Rd5 {[%emt 0:01:30]} 27. Qe2 {[%emt 0:01:30]} Rfd8 {[%emt 0:01:30]} 28. Rad1 {[%emt 0:00:00]} a5 {[%emt 0:01:30]} 29. Qe4 {[%emt 0:00:00]} Qf7 {[%emt 0:01:30]} 30. Rf2 {[%emt 0:02:30]} Nc5 {[%emt 0:00:30]} 31. Qxf4 {[%emt 0:00:30]} Qxf4 {[%emt 0:01:30]} 32. Bxf4 {[%emt 0:00:30]} Nd3 {[%emt 0:00:00]} 33. Rxd3 {[%emt 0:02:30]} cxd3 {[%emt 0:00:00]} 34. Rd2 {[%emt 0:00:00]} Rf8 {[%emt 0:00:30]} 35. g5 {[%emt 0:06:00]} Rxf4 {[%emt 0:00:30]} 36. Rxd3 {[%emt 0:00:30]} Kf7 {[%emt 0:01:30]} 37. b3 {[%emt 0:00:30]} Ke6 {[%emt 0:00:30]} 38. c4 {[%emt 0:00:00]} bxc4 {[%emt 0:01:30]} 39. bxc4 {[%emt 0:00:00]} Rd8 {[%emt 0:00:30]} 40. d5+ {[%emt 0:00:30]} Kd7 {[%emt 0:04:30]} 41. c5 {[%emt 0:00:30]} Rf5 {[%emt 0:03:30]} 42. Re3 {[%emt 0:03:30]} Re8 {[%emt 0:05:30]} 43. e6+ {[%emt 0:01:30]} Kd8 {[%emt 0:03:30]} 44. Rd3 {[%emt 0:03:30]} Ref8 {[%emt 0:04:30]} 45. d6 {[%emt 0:00:30]} Rxf3 {[%emt 0:07:30]} 46. e7+ {[%emt 0:00:30]} Kd7 {[%emt 0:01:30]} 47. c6+ {[%emt 0:01:30]} Kxc6 {[%emt 0:01:30]} 48. Rxf3 {[%emt 0:00:30]} Re8 {[%emt 0:00:30]} 49. Rf6 {[%emt 0:03:30]} Bxf6 {[%emt 0:03:30]} 50. gxf6 {[%emt 0:04:30]} Kxd6 {[%emt 0:00:00]} 51. f7 {[%emt 0:00:30]} Kxe7 {[%emt 0:00:00]} 0-1

[Event "TUR-ch Veterans 2019"]
[Site "Belek"]
[Date "2019.01.24"]
[Round "5.20"]
[White "Kara, Senal"]
[Black "Tekeli, Savran"]
[Result "0-1"]
[ECO "C02"]
[WhiteElo "1315"]
[BlackElo "1478"]
[Annotator "NA"]
[PlyCount "204"]
[EventDate "2019.01.20"]
[EventType "swiss"]
[EventCountry "TUR"]
[SourceTitle "playchess.com"]
[Source "ChessBase"]
[SourceQuality "1"]
[TimeControl "5400+30"]

1. e4 {[%emt 0:00:30]} e6 {[%emt 0:00:30]} 2. d4 {[%emt 0:00:30]} d5 {[%emt 0:00:00]} 3. e5 {[%emt 0:00:00]} c5 {[%emt 0:00:00]} 4. Nf3 {[%emt 0:01:00]} f6 {[%emt 0:00:30]} 5. Nh4 {[%emt 0:00:30]} g6 {[%emt 0:00:30]} 6. c3 {[%emt 0:00:30]} Nc6 {[%emt 0:00:00]} 7. Nf3 {[%emt 0:01:30]} Bd7 {[%emt 0:00:00]} 8. Bd3 {[%emt 0:00:30]} Qc7 {[%emt 0:01:30]} 9. Bf4 {[%emt 0:00:30]} Qb6 {[%emt 0:01:30]} 10. b3 {[%emt 0:01:30]} Bg7 {[%emt 0:01:30]} 11. O-O {[%emt 0:00:30]} Nge7 {[%emt 0:00:30]} 12. exf6 {[%emt 0:00:30]} Bxf6 {[%emt 0:00:30]} 13. Ne5 {[%emt 0:01:30]} Nxe5 {[%emt 0:01:30]} 14. dxe5 {[%emt 0:00:30]} Bg7 {[%emt 0:00:30]} 15. Nd2 {[%emt 0:01:30]} O-O {[%emt 0:00:00]} 16. Bg3 {[%emt 0:00:30]} Nf5 {[%emt 0:00:00]} 17. Nf3 {[%emt 0:02:30]} Nxg3 {[%emt 0:00:30]} 18. hxg3 {[%emt 0:00:30]} Rad8 {[%emt 0:03:30]} 19. Qc2 {[%emt 0:00:30]} Qc7 {[%emt 0:02:30]} 20. Bxg6 {[%emt 0:00:00]} hxg6 {[%emt 0:01:30]} 21. Qxg6 {[%emt 0:02:00]} Rxf3 {[%emt 0:01:30]} 22. gxf3 {[%emt 0:00:30]} Qxe5 {[%emt 0:00:00]} 23. Rac1 {[%emt 0:02:30]} Be8 {[%emt 0:01:00]} 24. Qd3 {[%emt 0:00:30]} a6 {[%emt 0:01:30]} 25. Rfe1 {[%emt 0:00:30]} Qf6 {[%emt 0:00:30]} 26. f4 {[%emt 0:01:30]} Bg6 {[%emt 0:01:30]} 27. Qe3 {[%emt 0:00:30]} Re8 {[%emt 0:03:30]} 28. Qxc5 {[%emt 0:00:30]} Be4 {[%emt 0:01:30]} 29. Qe3 {[%emt 0:00:30]} Bf5 {[%emt 0:02:30]} 30. Kg2 {[%emt 0:03:30]} Rc8 {[%emt 0:01:30]} 31. c4 {[%emt 0:03:30]} d4 {[%emt 0:00:30]} 32. Qf3 {[%emt 0:01:30]} Rc7 {[%emt 0:02:30]} 33. g4 {[%emt 0:00:30]} Bg6 {[%emt 0:01:30]} 34. Qg3 {[%emt 0:01:30]} Be8 {[%emt 0:01:30]} 35. Re5 {[%emt 0:02:30]} Bc6+ {[%emt 0:06:30]} 36. f3 {[%emt 0:00:30]} Qg6 {[%emt 0:00:30]} 37. Rg5 {[%emt 0:01:30]} Qd3 {[%emt 0:01:30]} 38. Rf1 {[%emt 0:00:30]} Kf7 {[%emt 0:03:30]} 39. Rf2 {[%emt 0:01:30]} Rc8 {[%emt 0:01:30]} 40. Qh4 {[%emt 0:02:30]} Rh8 {[%emt 0:02:30]} 41. Rxg7+ {[%emt 0:00:30]} Kxg7 {[%emt 0:00:30]} 42. Qg5+ {[%emt 0:00:30]} Qg6 {[%emt 0:01:30]} 43. Qe5+ {[%emt 0:00:30]} Qf6 {[%emt 0:00:30]} 44. Qc7+ {[%emt 0:00:30]} Qf7 {[%emt 0:01:30]} 45. Qe5+ {[%emt 0:00:30]} Qf6 {[%emt 0:02:30]} 46. Qc7+ {[%emt 0:01:30]} Kg8 {[%emt 0:00:30]} 47. g5 {[%emt 0:01:30]} Qf5 {[%emt 0:01:30]} 48. Qd8+ {[%emt 0:01:30]} Kh7 {[%emt 0:02:30]} 49. Qxd4 {[%emt 0:00:30]} Qg4+ {[%emt 0:00:30]} 50. Kf1 {[%emt 0:00:30]} Qh3+ {[%emt 0:03:30]} 51. Ke2 {[%emt 0:01:30]} Rf8 {[%emt 0:00:30]} 52. Qd6 {[%emt 0:00:30]} Rf7 {[%emt 0:03:30]} 53. Qd3+ {[%emt 0:02:30]} Kg7 {[%emt 0:03:30]} 54. Qd4+ {[%emt 0:03:30]} Kg8 {[%emt 0:00:30]} 55. Ke3 {[%emt 0:01:30]} Rd7 {[%emt 0:02:30]} 56. Qf6 {[%emt 0:01:30]} Qf5 {[%emt 0:01:30]} 57. Qc3 {[%emt 0:01:30]} Qc5+ {[%emt 0:03:30]} 58. Ke2 {[%emt 0:00:30]} Qd4 {[%emt 0:00:30]} 59. Qc2 {[%emt 0:00:30]} Qxf4 {[%emt 0:02:30]} 60. Qg6+ {[%emt 0:00:30]} Kf8 {[%emt 0:00:30]} 61. Qh6+ {[%emt 0:04:30]} Ke7 {[%emt 0:02:30]} 62. Qg7+ {[%emt 0:02:30]} Kd8 {[%emt 0:01:30]} 63. Qf6+ {[%emt 0:00:30]} Qxf6 {[%emt 0:00:30]} 64. gxf6 {[%emt 0:00:00]} Rf7 {[%emt 0:00:00]} 65. Ke3 {[%emt 0:00:00]} Rxf6 {[%emt 0:00:00]} 66. f4 {[%emt 0:00:30]} Kc7 {[%emt 0:01:30]} 67. Kd4 {[%emt 0:00:30]} Rf5 {[%emt 0:00:30]} 68. Ke3 {[%emt 0:00:30]} Rh5 {[%emt 0:01:30]} 69. Kd4 {[%emt 0:00:30]} b6 {[%emt 0:00:30]} 70. Re2 {[%emt 0:00:30]} Kd7 {[%emt 0:00:30]} 71. Rd2 {[%emt 0:01:30]} Kc7 {[%emt 0:01:30]} 72. Re2 {[%emt 0:00:30]} Bd7 {[%emt 0:00:30]} 73. a4 {[%emt 0:00:30]} Rh3 {[%emt 0:00:30]} 74. Rb2 {[%emt 0:00:30]} Rf3 {[%emt 0:00:30]} 75. Ke5 {[%emt 0:00:30]} Re3+ {[%emt 0:01:30]} 76. Kd4 {[%emt 0:00:30]} Re1 {[%emt 0:00:30]} 77. Rf2 {[%emt 0:00:30]} Bc6 {[%emt 0:00:30]} 78. f5 {[%emt 0:01:30]} exf5 {[%emt 0:00:30]} 79. Rxf5 {[%emt 0:00:30]} Re4+ {[%emt 0:01:30]} 80. Kc3 {[%emt 0:00:30]} Re7 {[%emt 0:00:30]} 81. c5 {[%emt 0:01:30]} b5 {[%emt 0:01:30]} 82. axb5 {[%emt 0:00:30]} Bxb5 {[%emt 0:01:30]} 83. Kb4 {[%emt 0:02:30]} Re4+ {[%emt 0:00:30]} 84. Ka3 {[%emt 0:03:30]} a5 {[%emt 0:00:30]} 85. Rf6 {[%emt 0:00:30]} Re5 {[%emt 0:03:30]} 86. b4 {[%emt 0:04:30]} Re3+ {[%emt 0:00:30]} 87. Kb2 {[%emt 0:00:30]} a4 {[%emt 0:00:45]} 88. Rb6 {[%emt 0:00:30]} Rb3+ {[%emt 0:00:41]} 89. Ka2 {[%emt 0:01:30]} Rxb4 {[%emt 0:01:28]} 90. Ka1 {[%emt 0:00:30]} Rb3 {[%emt 0:00:39]} 91. Ka2 {[%emt 0:03:30]} Bc4 {[%emt 0:00:37]} 92. Rxb3 {[%emt 0:00:30]} axb3+ {[%emt 0:00:23]} 93. Kb2 {[%emt 0:00:00]} Kc6 {[%emt 0:00:14]} 94. Kc3 {[%emt 0:00:00]} Kxc5 {[%emt 0:00:13]} 95. Kb2 {[%emt 0:00:30]} Kb4 {[%emt 0:00:32]} 96. Ka1 {[%emt 0:00:30]} Ka3 {[%emt 0:00:18]} 97. Kb1 {[%emt 0:00:30]} Bd3+ {[%emt 0:00:20]} 98. Kc1 {[%emt 0:00:30]} b2+ {[%emt 0:00:27]} 99. Kd2 {[%emt 0:00:00]} b1=Q {[%emt 0:00:12]} 100. Kc3 {[%emt 0:00:00]} Qb5 {[%emt 0:02:07]} 101. Kd4 {[%emt 0:00:30]} Bf5 {[%emt 0:00:28]} 102. Kc3 {[%emt 0:00:30]} Qb4# {[%emt 0:00:19]} 0-1

[Event "TUR-ch Veterans 2019"]
[Site "Belek"]
[Date "2019.01.25"]
[Round "6.1"]
[White "Yasin, Hur"]
[Black "Buker, Muhittin"]
[Result "1-0"]
[ECO "B23"]
[WhiteElo "2004"]
[BlackElo "1978"]
[Annotator "NA"]
[PlyCount "85"]
[EventDate "2019.01.20"]
[EventType "swiss"]
[EventCountry "TUR"]
[SourceTitle "playchess.com"]
[Source "ChessBase"]
[SourceQuality "1"]
[TimeControl "5400+30"]

1. e4 {[%emt 0:00:30]} c5 {[%emt 0:00:30]} 2. Nc3 {[%emt 0:01:30]} d6 {[%emt 0:00:30]} 3. f4 {[%emt 0:00:30]} Nc6 {[%emt 0:00:30]} 4. Bc4 {[%emt 0:00:00]} Nf6 {[%emt 0:01:30]} 5. Nf3 {[%emt 0:01:00]} e6 {[%emt 0:00:30]} 6. d3 {[%emt 0:06:30]} Be7 {[%emt 0:01:30]} 7. Bb3 {[%emt 0:00:00] B23: Closed Sicilian: Lines without g3} (7. O-O a6 8. a3 O-O 9. Ba2 b5 10. h3 b4 11. axb4 Nxb4 12. Bb1 Bb7 13. Ne2 c4 14. g4 Nd7 {1-0 (44) Alonso Moyano,J (2372)-Ubilava,E (2525) Sabadell 2008}) 7... d5 {[%emt 0:00:30]} 8. e5 {[%emt 0:00:00]} Ng4 $146 {[%emt 0:01:30]} ({Predecessor:} 8... Nd7 9. O-O Nb6 10. a3 Bd7 11. Qe1 g6 12. Bd2 Rc8 13. Kh1 h5 {1-0 (46) Lyell,M (2228)-Szalanczy,E (2251) Budapest 2014}) 9. Ne2 {[%emt 0:01:30]} h5 {[%emt 0:00:30]} 10. c3 {[%emt 0:01:30]} b6 {[%emt 0:11:30]} 11. d4 {[%emt 0:10:30]} cxd4 {[%emt 0:03:30]} 12. Ba4 {[%emt 0:02:30]} Bd7 {[%emt 0:00:30]} 13. Bxc6 {[%emt 0:00:30]} Bxc6 {[%emt 0:00:30]} 14. Nexd4 {[%emt 0:00:30]} Bd7 {[%emt 0:00:30]} 15. O-O {[%emt 0:00:00]} g6 {[%emt 0:00:30]} 16. a4 {[%emt 0:04:00]} Rc8 {[%emt 0:00:00]} 17. Qd3 {[%emt 0:01:30]} Qc7 {[%emt 0:01:00]} 18. Bd2 {[%emt 0:02:30]} Qc4 {[%emt 0:00:30]} 19. Qxc4 {[%emt 0:05:30]} dxc4 {[%emt 0:01:30]} 20. a5 {[%emt 0:01:30]} b5 {[%emt 0:00:30]} 21. a6 {[%emt 0:03:30]} Bc5 {[%emt 0:00:30]} 22. h3 {[%emt 0:00:30]} Nh6 {[%emt 0:03:30]} 23. Be3 {[%emt 0:00:30]} Ke7 {[%emt 0:01:30]} 24. Bf2 {[%emt 0:00:30]} Bc6 {[%emt 0:08:30]} 25. Nf5+ {[%emt 0:02:30]} Nxf5 {[%emt 0:00:30]} 26. Bxc5+ {[%emt 0:00:30]} Kd7 {[%emt 0:00:00]} 27. Bxa7 {[%emt 0:00:30]} Kc7 {[%emt 0:00:00]} 28. Ng5 {[%emt 0:01:30]} Ng3 {[%emt 0:03:30]} 29. Rfe1 {[%emt 0:04:30]} Rhd8 {[%emt 0:00:30]} 30. Bf2 {[%emt 0:00:30]} h4 {[%emt 0:03:30]} 31. Bxg3 {[%emt 0:19:30]} (31. Nxf7 $142 Rd2 32. Ng5) 31... hxg3 {[%emt 0:00:30] [#]} 32. Re3 $1 {[%emt 0:00:30]} ({Weaker is} 32. Nxf7 Rd2 $17) 32... Rd2 $1 {[%emt 0:00:30]} 33. Rxg3 {[%emt 0:00:00]} Rcd8 $2 {[%emt 0:00:30]} (33... Rf8 $16 {is tougher.}) 34. Nxf7 {[%emt 0:01:00]} Rd1+ {[%emt 0:01:30]} 35. Rxd1 {[%emt 0:00:30]} Rxd1+ {[%emt 0:00:00]} 36. Kh2 {[%emt 0:00:30]} Rd2 {[%emt 0:00:00]} 37. Rxg6 {[%emt 0:01:30]} Rxb2 $18 {[%emt 0:01:30]} 38. Nd6 {[%emt 0:03:30]} Kb6 {[%emt 0:12:30]} 39. f5 {[%emt 0:01:30]} Kc5 {[%emt 0:02:30]} 40. fxe6 {[%emt 0:02:30]} b4 {[%emt 0:01:30]} 41. cxb4+ {[%emt 0:00:30]} Rxb4 {[%emt 0:00:00]} 42. e7 {[%emt 0:01:30]} c3 {[%emt 0:05:00]} 43. Nb7+ {[%emt 0:00:30]} 1-0

[Event "TUR-ch Veterans 2019"]
[Site "Belek"]
[Date "2019.01.25"]
[Round "6.2"]
[White "Tofan, Ibrahim"]
[Black "Cetinkaya, Vedat Ali"]
[Result "0-1"]
[ECO "B13"]
[WhiteElo "2070"]
[BlackElo "2056"]
[Annotator "NA"]
[PlyCount "84"]
[EventDate "2019.01.20"]
[EventType "swiss"]
[EventCountry "TUR"]
[SourceTitle "playchess.com"]
[Source "ChessBase"]
[SourceQuality "1"]
[TimeControl "5400+30"]

1. e4 {[%emt 0:01:30]} c6 {[%emt 0:00:30]} 2. d4 {[%emt 0:02:30]} d5 {[%emt 0:00:00]} 3. exd5 {[%emt 0:01:30]} cxd5 {[%emt 0:00:00]} 4. Bd3 {[%emt 0:00:30]} Nc6 {[%emt 0:01:30]} 5. c3 {[%emt 0:00:00]} Nf6 {[%emt 0:01:30]} 6. Bf4 {[%emt 0:00:00]} e6 {[%emt 0:06:30]} 7. Nd2 {[%emt 0:04:30]} Bd6 {[%emt 0:03:30]} 8. Bxd6 {[%emt 0:00:30]} Qxd6 {[%emt 0:00:30]} 9. Ngf3 {[%emt 0:00:30] LiveBook: 11 Publish game on website} O-O {[%emt 0:01:30]} 10. O-O {[%emt 0:00:00]} a6 {[%emt 0:00:30]} 11. Re1 {[%emt 0:00:00]} b5 {[%emt 0:00:30] B13: Caro-Kann: Exchange Variation and Panov-Botvinnik Attack} 12. Ne5 {[%emt 0:02:30]} b4 {[%emt 0:00:30]} 13. Rb1 $146 {[%emt 0:26:30]} ({You set blue moves yourself with the critical opening position annotation.:} 13. f4 bxc3 14. bxc3 Ne7 15. Qf3 Ng6 16. g4 Nd7 17. Qg3 Ngxe5 18. fxe5 Qe7 19. g5 {1-0 (43) Campos,W (1756)-Correa,L (1636) Goiania 2017}) 13... Bd7 {[%emt 0:04:30]} 14. Nb3 {[%emt 0:03:30]} Rfc8 {[%emt 0:06:30]} 15. Qf3 {[%emt 0:05:30]} Ne7 {[%emt 0:09:30]} (15... bxc3 $11 {remains equal.} 16. bxc3 Qa3) 16. Nc5 {[%emt 0:03:30]} Rxc5 {[%emt 0:14:30]} 17. dxc5 {[%emt 0:00:00]} Qxc5 {[%emt 0:00:30]} 18. Rec1 {[%emt 0:06:00]} Be8 {[%emt 0:01:30]} 19. Ng4 {[%emt 0:06:30]} Nd7 {[%emt 0:04:30]} 20. Qe2 {[%emt 0:05:30]} a5 {[%emt 0:01:30]} 21. Bb5 {[%emt 0:00:30]} Nf8 {[%emt 0:01:30]} 22. Bxe8 {[%emt 0:01:30]} Rxe8 {[%emt 0:00:00]} 23. Ne3 {[%emt 0:01:30]} Nfg6 {[%emt 0:01:00]} 24. Qd2 {[%emt 0:01:30]} Qd6 {[%emt 0:03:30]} 25. Nf1 {[%emt 0:06:30]} Ne5 {[%emt 0:02:30]} 26. Qe2 {[%emt 0:00:54]} Rb8 {[%emt 0:01:30]} 27. Rd1 {[%emt 0:01:41]} N7g6 {[%emt 0:02:30]} 28. g3 {[%emt 0:03:28]} Qc6 {[%emt 0:01:30]} 29. f4 {[%emt 0:01:37]} Nc4 {[%emt 0:00:30]} 30. cxb4 {[%emt 0:04:44]} axb4 {[%emt 0:00:30]} 31. Qf2 {[%emt 0:05:07]} Ne7 {[%emt 0:02:30]} 32. Rbc1 {[%emt 0:00:40]} Qb7 {[%emt 0:00:30]} 33. Rc2 {[%emt 0:03:56]} h5 {[%emt 0:01:30]} 34. Rdc1 {[%emt 0:00:04]} Nf5 {[%emt 0:01:30]} 35. Rxc4 {[%emt 0:02:16]} dxc4 {[%emt 0:01:30]} 36. Rxc4 {[%emt 0:00:30]} b3 {[%emt 0:00:30]} 37. a3 {[%emt 0:00:30]} Qd5 {[%emt 0:00:30]} 38. Rc3 {[%emt 0:00:30]} Nd4 {[%emt 0:01:30]} 39. Nd2 {[%emt 0:00:20]} Rd8 {[%emt 0:01:30]} 40. Nf1 {[%emt 0:00:30]} Qe4 {[%emt 0:00:30]} 41. Re3 {[%emt 0:00:37]} Qc2 {[%emt 0:00:30]} 42. Kg2 {[%emt 0:00:30]} Rc8 {[%emt 0:00:30]} 0-1

[Event "TUR-ch Veterans 2019"]
[Site "Belek"]
[Date "2019.01.25"]
[Round "6.3"]
[White "Ozates, Veysel"]
[Black "Aysoy, Veysi"]
[Result "0-1"]
[ECO "B01"]
[WhiteElo "1550"]
[BlackElo "1933"]
[Annotator "NA"]
[PlyCount "116"]
[EventDate "2019.01.20"]
[EventType "swiss"]
[EventCountry "TUR"]
[SourceTitle "playchess.com"]
[Source "ChessBase"]
[SourceQuality "1"]
[TimeControl "5400+30"]

1. e4 {[%emt 0:00:30]} d5 {[%emt 0:01:30]} 2. exd5 {[%emt 0:00:30]} Nf6 {[%emt 0:00:00]} 3. d4 {[%emt 0:00:00]} Nxd5 {[%emt 0:00:00]} 4. Nf3 {[%emt 0:00:00]} g6 {[%emt 0:00:00]} 5. Be2 {[%emt 0:01:30]} Bg7 {[%emt 0:00:00]} 6. O-O {[%emt 0:02:30]} O-O {[%emt 0:00:30]} 7. c4 {[%emt 0:01:30]} Nb6 {[%emt 0:00:00]} 8. Nc3 {[%emt 0:01:30]} Nc6 {[%emt 0:01:00]} 9. Be3 {[%emt 0:00:30]} Bg4 {[%emt 0:01:30]} 10. Qb3 {[%emt 0:05:30] [#] B01: Scandinavian Defence} (10. c5 $11 Nd5 11. h3 (11. Nxd5 Qxd5 12. h3 Bf5 13. Qa4 Rad8 14. Rfd1 {½-½ (14) Lutz,C (2532)-Marchio,E (2340) Germany 2016})) 10... Bxf3 $1 {[%emt 0:05:30]} 11. Bxf3 {[%emt 0:01:30]} Nxd4 $146 {[%emt 0:12:30]} ({Predecessor:} 11... Na5 12. Qb4 Naxc4 13. a4 a5 14. Qb3 c6 15. Rfd1 Nxe3 16. fxe3 e6 17. Rac1 Rb8 18. Ne4 Nd5 19. Nc5 Qe7 {½-½ (19) Simon,O (2293)-Aveline,P (2158) Issy les Moulineaux 2003}) 12. Bxd4 {[%emt 0:00:30]} Bxd4 {[%emt 0:06:30]} (12... Qxd4 $17 13. Bxb7 Rab8) 13. Rad1 {[%emt 0:03:30]} e5 {[%emt 0:03:30]} 14. Bxb7 {[%emt 0:12:30]} Rb8 {[%emt 0:00:30]} 15. Bf3 {[%emt 0:00:30]} Qh4 {[%emt 0:02:30]} 16. g3 {[%emt 0:02:30]} Qh3 {[%emt 0:04:30]} 17. Nb5 {[%emt 0:03:30]} c5 {[%emt 0:05:30]} 18. Nxa7 {[%emt 0:02:30]} Nd7 {[%emt 0:12:30]} 19. Nb5 {[%emt 0:01:30]} h5 {[%emt 0:02:30]} 20. Qd3 {[%emt 0:05:30]} Rfd8 {[%emt 0:01:30]} 21. b3 {[%emt 0:04:30]} Nf6 {[%emt 0:01:30]} 22. Nxd4 {[%emt 0:07:30]} Rxd4 $14 {[%emt 0:05:30]} 23. Bg2 {[%emt 0:05:30]} Qe6 {[%emt 0:05:30]} 24. Qe2 {[%emt 0:01:30]} h4 {[%emt 0:04:30]} 25. Rfe1 {[%emt 0:06:30]} Re8 {[%emt 0:02:30]} 26. Qc2 {[%emt 0:06:30]} Kg7 {[%emt 0:01:46]} 27. Rxd4 {[%emt 0:02:30]} cxd4 {[%emt 0:00:38]} 28. c5 {[%emt 0:01:30]} hxg3 {[%emt 0:01:24]} 29. hxg3 {[%emt 0:00:30]} e4 {[%emt 0:02:03]} 30. b4 Qe5 {[%emt 0:02:49]} 31. Qe2 {[%emt 0:06:45]} d3 {[%emt 0:01:06]} 32. Qd2 {[%emt 0:00:30]} Qd4 {[%emt 0:03:30]} 33. a3 {[%emt 0:01:46]} Nd5 {[%emt 0:00:42]} 34. Bf1 {[%emt 0:01:52]} Ra8 {[%emt 0:04:03]} 35. Bg2 {[%emt 0:03:41]} f5 {[%emt 0:01:08]} 36. g4 {[%emt 0:02:01]} Rxa3 {[%emt 0:03:02]} 37. gxf5 {[%emt 0:00:18]} Ra1 {[%emt 0:01:28]} 38. Rxa1 {[%emt 0:04:20]} Qxa1+ {[%emt 0:00:03]} 39. Kh2 {[%emt 0:00:06]} Qe5+ {[%emt 0:00:20]} 40. Kh1 {[%emt 0:00:42]} Qxf5 {[%emt 0:02:03]} 41. c6 {[%emt 0:00:47]} Qh5+ {[%emt 0:00:37]} 42. Kg1 {[%emt 0:00:30]} Qe2 {[%emt 0:00:23]} 43. Qg5 {[%emt 0:00:39]} d2 {[%emt 0:00:43]} 44. Qe5+ {[%emt 0:00:11]} Kh7 {[%emt 0:00:34]} 45. Qxd5 {[%emt 0:02:21]} d1=Q+ {[%emt 0:00:37]} 46. Qxd1 {[%emt 0:00:37]} Qxd1+ {[%emt 0:00:06]} 47. Bf1 {[%emt 0:00:00]} Qd6 {[%emt 0:00:32]} 48. b5 {[%emt 0:00:00]} Qc5 {[%emt 0:00:39]} 49. Kg2 {[%emt 0:00:35]} Kg7 {[%emt 0:00:07]} 50. Kg3 {[%emt 0:00:00]} g5 {[%emt 0:00:06]} 51. Kg2 {[%emt 0:00:16]} Kf6 {[%emt 0:00:11]} 52. Kg1 {[%emt 0:00:21]} g4 {[%emt 0:00:29]} 53. Kg2 {[%emt 0:00:17]} Kg5 {[%emt 0:00:09]} 54. Be2 {[%emt 0:00:24]} Kf4 {[%emt 0:00:33]} 55. Kf1 {[%emt 0:00:44]} g3 {[%emt 0:00:18]} 56. fxg3+ {[%emt 0:00:19]} Kxg3 {[%emt 0:00:09]} 57. Ke1 {[%emt 0:00:09]} Qc1+ {[%emt 0:00:31]} 58. Bd1 {[%emt 0:00:13]} e3 {[%emt 0:00:10]} 0-1